{"text_format":"1","workbook":"xlsx","n_sheets":1,"sheets":["Length"],"not_rendered":{"charts":0,"images":0,"macros":1,"external_links":0,"defined_names":1,"comments":0,"pivot_tables":0},"unopened":[],"bounds":{"document_bytes":16777216,"sheet_cells":100000,"rows_first":2000,"rows_last":500,"rows_between":2000,"halvings":0,"cell_chars":16384,"cell_head_chars":4096},"cells_cut":0,"cells_raw":0,"read":"whole","date_system":"1900"}

{"sheet":"Length","index":0,"n_rows":42,"n_cols":41,"rows_kept":42,"cut":false,"hidden":false,"merged":[[39,42,39,43],[40,40,40,41],[40,42,40,43],[35,25,35,26],[39,22,39,24],[39,25,39,26],[35,28,35,29],[35,33,35,35],[35,36,35,37],[39,28,39,29],[36,40,36,41],[39,4,39,5],[39,9,39,11],[39,12,39,13],[39,40,39,41],[39,17,39,18],[39,33,39,35],[39,36,39,37],[35,4,35,5],[35,9,35,11],[35,12,35,13],[35,40,35,41],[35,17,35,18],[35,22,35,24],[12,42,12,43],[13,42,13,43],[8,40,8,41],[9,40,9,41],[12,40,12,41],[13,40,13,41],[1,1,5,38],[8,4,8,5],[12,4,12,5],[8,10,8,11],[12,10,12,11],[8,12,8,13],[12,12,12,13],[7,25,7,26],[12,20,12,21],[8,20,8,21],[8,25,8,26],[12,25,12,26],[16,25,16,26],[17,4,17,5],[17,10,17,11],[17,12,17,13],[17,20,17,21],[17,25,17,26],[17,40,17,41],[18,40,18,41],[21,4,21,5],[21,10,21,11],[21,12,21,13],[21,20,21,21],[21,25,21,26],[21,40,21,41],[30,4,30,5],[30,12,30,13],[30,20,30,21],[30,40,30,41],[21,42,21,43],[22,40,22,41],[22,42,22,43],[25,25,25,26],[26,4,26,5],[26,12,26,13],[30,42,30,43],[31,40,31,41],[31,42,31,43],[26,9,26,11],[30,9,30,11],[26,24,26,26],[30,24,30,26],[27,40,27,41],[26,20,26,21],[26,40,26,41]]}
[]
[null,"Level 2 Length Recap                                                                                                                                           Created by Mr. Lafferty@mathsrevision.com"]
[]
[]
[]
[]
[null,"Q1.   Change from   cm   into   mm."]
[]
[null,null,null,"(a)",{"$f":"ROUND((RAND()*(99-9)+9),0)","v":63},null,"cm",null,null,null,null,null,"mm",null,null,null,null,null,null,"(b)",{"$f":"ROUND((RAND()*(98.2-5.3)+5.3),1)","v":76.099999999999994},null,"cm",null,null,null,null,"mm",null,null,null,null,null,null,null,null,null,null,null,null,{"$f":"E9*10","v":630}]
[null,null,null,null,null,null,null,null,null,null,null,null,null,null,null,null,null,null,null,null,null,null,null,null,null,null,null,null,null,null,null,null,null,null,null,null,null,null,null,null,{"$f":"U9*10","v":761}]
[null,"Q2.   Change from   mm   into   cm."]
[]
[null,null,null,"(b)",{"$f":"ROUND((RAND()*(98-9)+9),0)","v":73},null,"mm",null,null,null,null,null,"cm",null,null,null,null,null,null,"(d)",{"$f":"ROUND((RAND()*(99.8-9.1)+9.1),1)","v":66.2},null,"mm",null,null,null,null,"cm",null,null,null,null,null,null,null,null,null,null,null,null,{"$f":"E13/10","v":7.3}]
[null,null,null,null,null,null,null,null,null,null,null,null,null,null,null,null,null,null,null,null,null,null,null,null,null,null,null,null,null,null,null,null,null,null,null,null,null,null,null,null,{"$f":"U13/10","v":6.62}]
[]
[null,"Q3.   Change from   m   into   cm."]
[]
[null,null,null,"(a)",{"$f":"ROUND((RAND()*(99-9)+9),0)","v":70},null,"m",null,null,null,null,null,"cm",null,null,null,null,null,null,"(b)",{"$f":"ROUND((RAND()*(988-50)+50),0)","v":414},null,"m",null,null,null,null,"cm",null,null,null,null,null,null,null,null,null,null,null,null,{"$f":"E18*100","v":7000}]
[null,null,null,null,null,null,null,null,null,null,null,null,null,null,null,null,null,null,null,null,null,null,null,null,null,null,null,null,null,null,null,null,null,null,null,null,null,null,null,null,{"$f":"U18*100","v":41400}]
[null,"Q4.   Change from   cm   into   m."]
[]
[null,null,null,"(b)",{"$f":"ROUND((RAND()*(998-69)+99),0)","v":487},null,"cm",null,null,null,null,null,"m",null,null,null,null,null,null,"(d)",{"$f":"ROUND((RAND()*(999-69)+69),0)","v":380},null,"cm",null,null,null,null,"m",null,null,null,null,null,null,null,null,null,null,null,null,{"$f":"E22/100","v":4.87}]
[null,null,null,null,null,null,null,null,null,null,null,null,null,null,null,null,null,null,null,null,null,null,null,null,null,null,null,null,null,null,null,null,null,null,null,null,null,null,null,null,{"$f":"U22/100","v":3.8}]
[]
[null,"Q5.   Change from   km   into   m."]
[]
[null,null,null,"(a)",{"$f":"ROUND((RAND()*(99-9)+9),0)","v":99},null,"km",null,null,null,null,null,"m",null,null,null,null,null,null,"(b)",{"$f":"ROUND((RAND()*(988-3)+3),0)","v":334},null,"km",null,null,null,null,"m",null,null,null,null,null,null,null,null,null,null,null,null,{"$f":"E27*1000","v":99000}]
[null,null,null,null,null,null,null,null,null,null,null,null,null,null,null,null,null,null,null,null,null,null,null,null,null,null,null,null,null,null,null,null,null,null,null,null,null,null,null,null,{"$f":"U27*1000","v":334000}]
[null,"Q6.   Change from   m   into   km."]
[]
[null,null,null,"(b)",{"$f":"ROUND((RAND()*(9998-1111)+1111),0)","v":4528},null,"m",null,null,null,null,null,"km",null,null,null,null,null,null,"(d)",{"$f":"ROUND((RAND()*(9999-9)+9),0)","v":9282},null,"m",null,null,null,null,"km",null,null,null,null,null,null,null,null,null,null,null,null,{"$f":"E31/1000","v":4.5279999999999996}]
[null,null,null,null,null,null,null,null,null,null,null,null,null,null,null,null,null,null,null,null,null,null,null,null,null,null,null,null,null,null,null,null,null,null,null,null,null,null,null,null,{"$f":"U31/1000","v":9.282}]
[]
[null,"Q7.   Mixed questions."]
[]
[null,null,null,"(a)",{"$f":"ROUND((RAND()*(99-9)+9),0)","v":55},null,"m",null,null,null,null,null,"mm",null,null,null,"(b)",{"$f":"ROUND((RAND()*(99-9)+9),0)","v":92},null,"mm",null,null,null,null,null,"m",null,"(c)",{"$f":"ROUND((RAND()*(99-9)+9),0)","v":77},null,"km",null,null,null,null,null,"cm",null,null,null,{"$f":"E36*1000","v":55000}]
[null,null,null,null,null,null,null,null,null,null,null,null,null,null,null,null,null,null,null,null,null,null,null,null,null,null,null,null,null,null,null,null,null,null,null,null,null,null,null,null,{"$f":"R36/1000","v":9.1999999999999998E-2}]
[null,null,null,null,null,null,null,null,null,null,null,null,null,null,null,null,null,null,null,null,null,null,null,null,null,null,null,null,null,null,null,null,null,null,null,null,null,null,null,null,{"$f":"AC36*1000*100","v":7700000}]
[]
[null,null,null,"(d)",{"$f":"ROUND((RAND()*(9998-1111)+1111),0)","v":9767},null,"cm",null,null,null,null,null,"km",null,null,null,"(e)",{"$f":"ROUND((RAND()*(9998-1111)+1111),0)","v":1645},null,"mm",null,null,null,null,null,"km",null,"(f)",{"$f":"ROUND((RAND()*(9998-1111)+1111),0)","v":9249},null,"mm",null,null,null,null,null,"m",null,null,null,{"$f":"E40/100/1000","v":9.7670000000000007E-2}]
[null,null,null,null,null,null,null,null,null,null,null,null,null,null,null,null,null,null,null,null,null,null,null,null,null,null,null,null,null,null,null,null,null,null,null,null,null,null,null,null,{"$f":"R40/1000/1000","v":1.645E-3}]
[null,null,null,null,null,null,null,null,null,null,null,null,null,null,null,null,null,null,null,null,null,null,null,null,null,null,null,null,null,null,null,null,null,null,null,null,null,null,null,null,{"$f":"AC40/10/100","v":9.2490000000000006}]